[Event "Early-Titled-Tuesday-Blitz-September-12-2023"]
[Site "Chess.com"]
[Date "2023.09.12"]
[Round "5"]
[White "Arystanner"]
[Black "GMBenjaminBok"]
[Result "0-1"]
[WhiteElo "2834"]
[BlackElo "2991"]
[TimeControl "180+1"]
[EndTime "8:55:20 PDT"]
[Termination "GMBenjaminBok won by resignation"]

1. d4 {[%clk 0:03:00.9]} 1... Nf6 {[%clk 0:02:59.4]} 2. c4 {[%clk 0:03:01.5]}
2... e6 {[%clk 0:02:59.4]} 3. Nc3 {[%clk 0:03:01.8]} 3... Bb4 {[%clk 0:02:59.1]}
4. Nf3 {[%clk 0:03:02.2]} 4... O-O {[%clk 0:02:57.6]} 5. Qc2 {[%clk 0:03:02.6]}
5... d5 {[%clk 0:02:56.1]} 6. a3 {[%clk 0:03:02.3]} 6... Bxc3+ {[%clk
0:02:55.8]} 7. Qxc3 {[%clk 0:03:03.2]} 7... b6 {[%clk 0:02:56]} 8. Bg5 {[%clk
0:02:56.2]} 8... dxc4 {[%clk 0:02:54.7]} 9. Qxc4 {[%clk 0:02:55.8]} 9... Ba6
{[%clk 0:02:54.8]} 10. Qa4 {[%clk 0:02:55.8]} 10... h6 {[%clk 0:02:53.7]} 11.
Bh4 {[%clk 0:02:52.7]} 11... c5 {[%clk 0:02:52]} 12. dxc5 {[%clk 0:02:48.4]}
12... bxc5 {[%clk 0:02:52.9]} 13. Rd1 {[%clk 0:02:35]} 13... Qb6 {[%clk
0:02:49.9]} 14. Bxf6 {[%clk 0:02:28.6]} 14... gxf6 {[%clk 0:02:50.8]} 15. e3
{[%clk 0:02:23.5]} 15... Bxf1 {[%clk 0:02:50]} 16. Kxf1 {[%clk 0:02:24.4]} 16...
Nc6 {[%clk 0:02:46.4]} 17. h4 {[%clk 0:02:14.7]} 17... Rad8 {[%clk 0:02:39.8]}
18. Qg4+ {[%clk 0:01:54.6]} 18... Kh7 {[%clk 0:02:33.9]} 19. Re1 {[%clk
0:01:53.5]} 19... f5 {[%clk 0:02:14.2]} 20. Qa4 {[%clk 0:01:43.9]} 20... Rd6
{[%clk 0:01:48.1]} 21. Qc2 {[%clk 0:01:35.6]} 21... Rb8 {[%clk 0:01:46]} 22. g3
{[%clk 0:01:20.6]} 22... Qb7 {[%clk 0:01:16.1]} 23. Qxc5 {[%clk 0:01:14.2]}
23... Rd5 {[%clk 0:01:07.4]} 24. Qc3 {[%clk 0:01:12.6]} 24... Rb5 {[%clk
0:01:01.8]} 25. Qf6 {[%clk 0:01:09.2]} 25... Ne5 {[%clk 0:00:54]} 26. Ng5+
{[%clk 0:00:20.4]} 26... hxg5 {[%clk 0:00:53.4]} 27. e4 {[%clk 0:00:16.3]} 27...
g4 {[%clk 0:00:51.4]} 28. h5 {[%clk 0:00:15.8]} 28... Nf3 {[%clk 0:00:39.7]} 29.
Rc1 {[%clk 0:00:13.5]} 29... Nd2+ {[%clk 0:00:32.5]} 30. Kg1 {[%clk 0:00:12.7]}
30... Nxe4 {[%clk 0:00:31.1]} 31. Qd4 {[%clk 0:00:11.9]} 31... e5 {[%clk
0:00:12.4]} 32. Qd3 {[%clk 0:00:09.3]} 32... Rxb2 {[%clk 0:00:11.4]} 33. Re1
{[%clk 0:00:07.2]} 33... Rb1 {[%clk 0:00:09.8]} 34. Kh2 {[%clk 0:00:06.8]} 34...
Rxe1 {[%clk 0:00:09.3]} 35. Rxe1 {[%clk 0:00:07.2]} 35... Qb2 {[%clk 0:00:08.5]}
36. Re2 {[%clk 0:00:06]} 36... Qd4 {[%clk 0:00:08.6]} 37. Qa6 {[%clk 0:00:06.4]}
37... Qd7 {[%clk 0:00:04.9]} 38. h6 {[%clk 0:00:05.9]} 38... Qe6 {[%clk
0:00:04.7]} 39. Qxa7 {[%clk 0:00:05.8]} 39... Qxh6+ {[%clk 0:00:04.8]} 40. Kg2
{[%clk 0:00:06.5]} 40... Qh3+ {[%clk 0:00:05]} 41. Kg1 {[%clk 0:00:05.6]} 41...
Rb1+ {[%clk 0:00:05.9]} 0-1

[Event "Early-Titled-Tuesday-Blitz-September-12-2023"]
[Site "Chess.com"]
[Date "2023.09.12"]
[Round "5"]
[White "Manukyan_Artak"]
[Black "jraosam"]
[Result "0-1"]
[WhiteElo "2511"]
[BlackElo "2009"]
[TimeControl "180+1"]
[EndTime "8:55:20 PDT"]
[Termination "jraosam won by resignation"]

1. e4 {[%clk 0:03:00.9]} 1... c5 {[%clk 0:02:59.7]} 2. Nf3 {[%clk 0:03:00.5]}
2... d6 {[%clk 0:03:00.2]} 3. Bb5+ {[%clk 0:02:59.6]} 3... Nd7 {[%clk 0:03:00]}
4. O-O {[%clk 0:02:58.9]} 4... a6 {[%clk 0:03:00]} 5. Bd3 {[%clk 0:02:58.3]}
5... g6 {[%clk 0:02:58.9]} 6. a4 {[%clk 0:02:58.3]} 6... Bg7 {[%clk 0:02:59.4]}
7. c3 {[%clk 0:02:58.3]} 7... Ngf6 {[%clk 0:03:00.1]} 8. Bc2 {[%clk 0:02:58.2]}
8... e5 {[%clk 0:03:00.3]} 9. d4 {[%clk 0:02:57.8]} 9... exd4 {[%clk 0:02:59.7]}
10. cxd4 {[%clk 0:02:57.7]} 10... cxd4 {[%clk 0:03:00.2]} 11. Qxd4 {[%clk
0:02:55.1]} 11... Qc7 {[%clk 0:03:00.1]} 12. Nc3 {[%clk 0:02:40.2]} 12... O-O
{[%clk 0:01:57.7]} 13. Bf4 {[%clk 0:02:27.6]} 13... Ne8 {[%clk 0:01:23.7]} 14.
Qe3 {[%clk 0:02:15]} 14... Ne5 {[%clk 0:01:17.6]} 15. Bb3 {[%clk 0:02:11.6]}
15... Be6 {[%clk 0:01:16.9]} 16. Nd5 {[%clk 0:02:09.3]} 16... Bxd5 {[%clk
0:01:16.7]} 17. Bxd5 {[%clk 0:02:09.3]} 17... Nxf3+ {[%clk 0:01:15.1]} 18. Qxf3
{[%clk 0:02:09.3]} 18... Bxb2 {[%clk 0:01:15.6]} 19. Rab1 {[%clk 0:02:09.1]}
19... Be5 {[%clk 0:00:58.4]} 20. Rxb7 {[%clk 0:02:03.7]} 20... Qc3 {[%clk
0:00:58]} 21. Qxc3 {[%clk 0:00:57.6]} 21... Bxc3 {[%clk 0:00:58.9]} 22. Rc1
{[%clk 0:00:51.3]} 22... Bd4 {[%clk 0:00:44]} 23. Bh6 {[%clk 0:00:38.5]} 23...
Bg7 {[%clk 0:00:27.2]} 24. Bxg7 {[%clk 0:00:34.3]} 24... Kxg7 {[%clk 0:00:20.5]}
25. Rxf7+ {[%clk 0:00:25]} 25... Rxf7 {[%clk 0:00:21.4]} 26. Bxa8 {[%clk
0:00:25.4]} 26... Nc7 {[%clk 0:00:21.8]} 27. f3 {[%clk 0:00:22.8]} 27... Nxa8
{[%clk 0:00:21.4]} 28. Rc6 {[%clk 0:00:21.7]} 28... Nc7 {[%clk 0:00:20.1]} 29.
Rxd6 {[%clk 0:00:21.1]} 29... Kf8 {[%clk 0:00:19.9]} 30. Kf2 {[%clk 0:00:20.9]}
30... Ke7 {[%clk 0:00:20.5]} 31. Rb6 {[%clk 0:00:21.6]} 31... Kd7 {[%clk
0:00:20.9]} 32. Ke3 {[%clk 0:00:20.6]} 32... Re7 {[%clk 0:00:20.8]} 33. Kd4
{[%clk 0:00:19.2]} 33... Re6 {[%clk 0:00:20]} 34. Rb7 {[%clk 0:00:19.4]} 34...
Kc6 {[%clk 0:00:18.9]} 35. Rb1 {[%clk 0:00:19.2]} 35... Rd6+ {[%clk 0:00:17.1]}
36. Ke3 {[%clk 0:00:19.5]} 36... Ne6 {[%clk 0:00:12.9]} 37. h4 {[%clk
0:00:18.5]} 37... Nc5 {[%clk 0:00:12.8]} 38. a5 {[%clk 0:00:18.4]} 38... Rd3+
{[%clk 0:00:11.7]} 39. Ke2 {[%clk 0:00:18.6]} 39... Rb3 {[%clk 0:00:12.2]} 40.
Ra1 {[%clk 0:00:14.6]} 40... Rb2+ {[%clk 0:00:11.6]} 41. Kf1 {[%clk 0:00:15]}
41... Nb3 {[%clk 0:00:10]} 42. Ra4 {[%clk 0:00:13.8]} 42... Kb5 {[%clk
0:00:09.3]} 43. Ra3 {[%clk 0:00:10.4]} 43... Kb4 {[%clk 0:00:09.7]} 0-1

[Event "Early-Titled-Tuesday-Blitz-September-12-2023"]
[Site "Chess.com"]
[Date "2023.09.12"]
[Round "5"]
[White "Roman_Ovetchkin"]
[Black "GamayevOleg"]
[Result "1-0"]
[WhiteElo "2645"]
[BlackElo "2467"]
[TimeControl "180+1"]
[EndTime "8:55:21 PDT"]
[Termination "Roman_Ovetchkin won on time"]

1. d4 {[%clk 0:03:00.9]} 1... e6 {[%clk 0:02:56.3]} 2. e4 {[%clk 0:02:57.8]}
2... d5 {[%clk 0:02:54.9]} 3. e5 {[%clk 0:02:50.9]} 3... c5 {[%clk 0:02:51.9]}
4. c3 {[%clk 0:02:51.2]} 4... Nc6 {[%clk 0:02:49.8]} 5. Nf3 {[%clk 0:02:50.4]}
5... Bd7 {[%clk 0:02:50.2]} 6. Bd3 {[%clk 0:02:49.2]} 6... Rc8 {[%clk 0:02:50]}
7. a3 {[%clk 0:02:45]} 7... Nh6 {[%clk 0:02:36.5]} 8. b4 {[%clk 0:02:00.8]} 8...
cxd4 {[%clk 0:02:33.8]} 9. cxd4 {[%clk 0:01:58.1]} 9... Nf5 {[%clk 0:02:34]} 10.
Bb2 {[%clk 0:01:55]} 10... Be7 {[%clk 0:02:29.2]} 11. O-O {[%clk 0:01:54]} 11...
O-O {[%clk 0:02:25.7]} 12. Nbd2 {[%clk 0:01:53.6]} 12... f6 {[%clk 0:02:24.5]}
13. exf6 {[%clk 0:01:49.6]} 13... Bxf6 {[%clk 0:02:20.6]} 14. Nb3 {[%clk
0:01:49.6]} 14... Re8 {[%clk 0:02:10.9]} 15. Re1 {[%clk 0:01:47.6]} 15... b6
{[%clk 0:02:08.2]} 16. Qd2 {[%clk 0:01:41.2]} 16... Qc7 {[%clk 0:02:07.2]} 17.
Rac1 {[%clk 0:01:39.3]} 17... Qd6 {[%clk 0:02:07]} 18. Ne5 {[%clk 0:01:33]}
18... Bxe5 {[%clk 0:01:58.4]} 19. dxe5 {[%clk 0:01:32.7]} 19... Qf8 {[%clk
0:01:58.1]} 20. Ba6 {[%clk 0:01:20.6]} 20... Rb8 {[%clk 0:01:46.5]} 21. Qd3
{[%clk 0:01:07.8]} 21... Re7 {[%clk 0:01:40.4]} 22. g3 {[%clk 0:01:06.6]} 22...
Rf7 {[%clk 0:01:39.4]} 23. Re2 {[%clk 0:01:03.7]} 23... Be8 {[%clk 0:01:29.4]}
24. Rec2 {[%clk 0:01:01.2]} 24... Nh6 {[%clk 0:01:23.2]} 25. Nd4 {[%clk
0:00:45]} 25... Nxe5 {[%clk 0:01:18.1]} 26. Qe2 {[%clk 0:00:43]} 26... Nf3+
{[%clk 0:00:56.6]} 27. Nxf3 {[%clk 0:00:42.8]} 27... Rxf3 {[%clk 0:00:57.5]} 28.
Qxe6+ {[%clk 0:00:41]} 28... Kh8 {[%clk 0:00:56.7]} 29. Qxh6 {[%clk 0:00:31.8]}
29... Rb3 {[%clk 0:00:39.3]} 30. Qg5 {[%clk 0:00:26.2]} 30... d4 {[%clk
0:00:32.8]} 31. Bxd4 {[%clk 0:00:23]} 31... Rf3 {[%clk 0:00:18.6]} 32. Rc7
{[%clk 0:00:22.1]} 32... Rf7 {[%clk 0:00:17.3]} 33. Rc8 {[%clk 0:00:20.5]} 33...
Rxc8 {[%clk 0:00:16.7]} 34. Rxc8 {[%clk 0:00:21.1]} 34... Re7 {[%clk 0:00:14.2]}
35. Bd3 {[%clk 0:00:17.2]} 35... Kg8 {[%clk 0:00:06.8]} 36. Qd5+ {[%clk
0:00:15.8]} 36... Kh8 {[%clk 0:00:07.2]} 37. Kg2 {[%clk 0:00:13.3]} 37... h6
{[%clk 0:00:04.8]} 38. Qf5 {[%clk 0:00:12.1]} 38... Qxf5 {[%clk 0:00:04.4]} 39.
Bxf5 {[%clk 0:00:13]} 39... Kg8 {[%clk 0:00:04.3]} 40. Bg6 {[%clk 0:00:13.1]}
40... Kf8 {[%clk 0:00:04.8]} 41. Be3 {[%clk 0:00:11.9]} 41... Re6 {[%clk
0:00:02.1]} 42. Rxe8+ {[%clk 0:00:11.9]} 42... Rxe8 {[%clk 0:00:02]} 43. Bxe8
{[%clk 0:00:12.8]} 43... Kxe8 {[%clk 0:00:02.9]} 44. Kf3 {[%clk 0:00:13.7]} 1-0

[Event "Early-Titled-Tuesday-Blitz-September-12-2023"]
[Site "Chess.com"]
[Date "2023.09.12"]
[Round "5"]
[White "vladgoncharov"]
[Black "Nekoo04"]
[Result "1-0"]
[WhiteElo "2550"]
[BlackElo "2293"]
[TimeControl "180+1"]
[EndTime "8:55:21 PDT"]
[Termination "vladgoncharov won by checkmate"]

1. d4 {[%clk 0:03:00.9]} 1... d5 {[%clk 0:02:57.8]} 2. c4 {[%clk 0:03:00.1]}
2... e6 {[%clk 0:02:56.8]} 3. Nc3 {[%clk 0:02:59]} 3... Nf6 {[%clk 0:02:56.9]}
4. Bg5 {[%clk 0:02:58.1]} 4... Be7 {[%clk 0:02:56.8]} 5. e3 {[%clk 0:02:57.7]}
5... Nbd7 {[%clk 0:02:54.4]} 6. Rc1 {[%clk 0:02:53.6]} 6... c6 {[%clk
0:02:53.7]} 7. Nf3 {[%clk 0:02:48.8]} 7... O-O {[%clk 0:02:53.2]} 8. Bd3 {[%clk
0:02:48]} 8... h6 {[%clk 0:02:38.1]} 9. Bh4 {[%clk 0:02:46.1]} 9... dxc4 {[%clk
0:02:38]} 10. Bxc4 {[%clk 0:02:45.8]} 10... b5 {[%clk 0:02:38.4]} 11. Bd3 {[%clk
0:02:39.9]} 11... a6 {[%clk 0:02:38.2]} 12. O-O {[%clk 0:02:13.5]} 12... Bb7
{[%clk 0:02:37.6]} 13. Bxf6 {[%clk 0:02:08.2]} 13... Nxf6 {[%clk 0:02:29.5]} 14.
Ne4 {[%clk 0:02:07.3]} 14... Qd5 {[%clk 0:01:42.7]} 15. Nxf6+ {[%clk 0:01:56.7]}
15... Bxf6 {[%clk 0:01:37.3]} 16. b3 {[%clk 0:01:56.3]} 16... Be7 {[%clk
0:01:32.9]} 17. Nd2 {[%clk 0:01:49.9]} 17... Rac8 {[%clk 0:01:25.8]} 18. Be4
{[%clk 0:01:27.4]} 18... Qd7 {[%clk 0:01:21.2]} 19. Qh5 {[%clk 0:01:25.8]} 19...
c5 {[%clk 0:01:09.6]} 20. Bxb7 {[%clk 0:01:23.9]} 20... Qxb7 {[%clk 0:01:10.5]}
21. dxc5 {[%clk 0:01:24]} 21... Rfd8 {[%clk 0:01:09.9]} 22. Qf3 {[%clk
0:01:10.6]} 22... Qxf3 {[%clk 0:01:04.6]} 23. Nxf3 {[%clk 0:01:10]} 23... Bxc5
{[%clk 0:01:04.3]} 24. Rfd1 {[%clk 0:01:09.6]} 24... Ba3 {[%clk 0:00:39.2]} 25.
Rxc8 {[%clk 0:01:07.4]} 25... Rxc8 {[%clk 0:00:38.1]} 26. Kf1 {[%clk 0:01:06.9]}
26... Kf8 {[%clk 0:00:35.3]} 27. Ke2 {[%clk 0:01:05.3]} 27... Ke7 {[%clk
0:00:32.8]} 28. Ne5 {[%clk 0:00:44.7]} 28... Bd6 {[%clk 0:00:22.1]} 29. Nf3
{[%clk 0:00:42]} 29... Bb4 {[%clk 0:00:17.1]} 30. Nd4 {[%clk 0:00:22.9]} 30...
e5 {[%clk 0:00:15.9]} 31. Nf5+ {[%clk 0:00:22.8]} 31... Kf6 {[%clk 0:00:15]} 32.
g4 {[%clk 0:00:22.5]} 32... Rc2+ {[%clk 0:00:13.9]} 33. Kf3 {[%clk 0:00:22.4]}
33... Rxa2 {[%clk 0:00:13.1]} 34. h4 {[%clk 0:00:20.7]} 34... Rb2 {[%clk
0:00:09.9]} 35. Rd3 {[%clk 0:00:20]} 35... a5 {[%clk 0:00:09.5]} 36. Ke4 {[%clk
0:00:19]} 36... a4 {[%clk 0:00:07.8]} 37. bxa4 {[%clk 0:00:18.6]} 37... bxa4
{[%clk 0:00:08.7]} 38. Rd7 {[%clk 0:00:15.5]} 38... a3 {[%clk 0:00:04.3]} 39.
Ra7 {[%clk 0:00:15.4]} 39... a2 {[%clk 0:00:04.3]} 40. Ra6+ {[%clk 0:00:15.2]}
40... Bd6 {[%clk 0:00:01]} 41. Rxd6# {[%clk 0:00:14.6]} 1-0

[Event "Early-Titled-Tuesday-Blitz-September-12-2023"]
[Site "Chess.com"]
[Date "2023.09.12"]
[Round "5"]
[White "KononenkoD"]
[Black "Kacparov"]
[Result "0-1"]
[WhiteElo "2587"]
[BlackElo "2906"]
[TimeControl "180+1"]
[EndTime "8:55:22 PDT"]
[Termination "Kacparov won on time"]

1. d4 {[%clk 0:02:59.2]} 1... Nf6 {[%clk 0:02:59.9]} 2. c4 {[%clk 0:02:56.3]}
2... e6 {[%clk 0:02:59.8]} 3. g3 {[%clk 0:02:55.7]} 3... Bb4+ {[%clk 0:02:59.6]}
4. Bd2 {[%clk 0:02:54.3]} 4... Be7 {[%clk 0:02:57.7]} 5. Bg2 {[%clk 0:02:52.1]}
5... O-O {[%clk 0:02:57.6]} 6. e4 {[%clk 0:02:51.5]} 6... d6 {[%clk 0:02:44]} 7.
Nc3 {[%clk 0:02:43.5]} 7... e5 {[%clk 0:02:43.9]} 8. Nge2 {[%clk 0:02:37.2]}
8... a6 {[%clk 0:02:26.1]} 9. O-O {[%clk 0:02:35.6]} 9... c6 {[%clk 0:02:26.5]}
10. Qc2 {[%clk 0:02:29.2]} 10... b5 {[%clk 0:02:24.9]} 11. b3 {[%clk 0:02:25.3]}
11... Bb7 {[%clk 0:02:25]} 12. Rad1 {[%clk 0:02:17.8]} 12... Nbd7 {[%clk
0:02:24.7]} 13. h3 {[%clk 0:02:13.3]} 13... Rc8 {[%clk 0:02:24.6]} 14. dxe5
{[%clk 0:01:58]} 14... dxe5 {[%clk 0:02:21.6]} 15. Be3 {[%clk 0:01:53.3]} 15...
Qc7 {[%clk 0:02:21.9]} 16. Qb2 {[%clk 0:01:45.1]} 16... Rfd8 {[%clk 0:02:21.3]}
17. Kh2 {[%clk 0:01:43.9]} 17... Nc5 {[%clk 0:02:20.8]} 18. Nc1 {[%clk 0:01:40]}
18... Ne6 {[%clk 0:02:17.1]} 19. Rxd8+ {[%clk 0:01:31.7]} 19... Rxd8 {[%clk
0:02:16.8]} 20. Rd1 {[%clk 0:01:32.1]} 20... h5 {[%clk 0:02:10]} 21. Rxd8+
{[%clk 0:01:30.3]} 21... Qxd8 {[%clk 0:02:09.3]} 22. Qd2 {[%clk 0:01:25.9]}
22... Qc7 {[%clk 0:02:08.7]} 23. Nd3 {[%clk 0:01:22.7]} 23... h4 {[%clk
0:02:06.5]} 24. gxh4 {[%clk 0:01:15.3]} 24... Nh5 {[%clk 0:02:03.7]} 25. Ne2
{[%clk 0:01:09]} 25... Bxh4 {[%clk 0:02:00.7]} 26. Ng3 {[%clk 0:01:09.4]} 26...
Nhf4 {[%clk 0:01:58.8]} 27. Nf5 {[%clk 0:01:05]} 27... Bf6 {[%clk 0:01:58.3]}
28. Ne1 {[%clk 0:01:03]} 28... Nxg2 {[%clk 0:01:49.2]} 29. Kxg2 {[%clk
0:01:03.8]} 29... c5 {[%clk 0:01:47.8]} 30. f3 {[%clk 0:00:59.2]} 30... Nd4
{[%clk 0:01:47.6]} 31. Bxd4 {[%clk 0:00:48.9]} 31... cxd4 {[%clk 0:01:47.7]} 32.
Qb4 {[%clk 0:00:48.6]} 32... g6 {[%clk 0:01:38.9]} 33. Ng3 {[%clk 0:00:42.4]}
33... Be7 {[%clk 0:01:36.8]} 34. Qd2 {[%clk 0:00:40.6]} 34... bxc4 {[%clk
0:01:37.1]} 35. bxc4 {[%clk 0:00:40.2]} 35... Qxc4 {[%clk 0:01:38]} 36. Nd3
{[%clk 0:00:40.8]} 36... Qb5 {[%clk 0:01:21.5]} 37. a4 {[%clk 0:00:38.3]} 37...
Qxa4 {[%clk 0:01:18.7]} 38. Nxe5 {[%clk 0:00:38.7]} 38... Qb4 {[%clk 0:01:10.3]}
39. Qf4 {[%clk 0:00:34.7]} 39... Qb2+ {[%clk 0:01:09.7]} 40. Kg1 {[%clk
0:00:32.1]} 40... Qb3 {[%clk 0:01:08.7]} 41. Nf1 {[%clk 0:00:22.1]} 41... Qe6
{[%clk 0:01:08.2]} 42. Nd2 {[%clk 0:00:20.3]} 42... a5 {[%clk 0:01:03.8]} 43.
Nd3 {[%clk 0:00:19.8]} 43... Kg7 {[%clk 0:01:00.5]} 44. Qb8 {[%clk 0:00:19.1]}
44... Ba6 {[%clk 0:00:58.7]} 45. Nf4 {[%clk 0:00:16.1]} 45... Qd6 {[%clk
0:00:58.5]} 46. Qxd6 {[%clk 0:00:14.7]} 46... Bxd6 {[%clk 0:00:59.4]} 47. Nd5
{[%clk 0:00:14.8]} 47... a4 {[%clk 0:00:57.7]} 48. Kf2 {[%clk 0:00:14.2]} 48...
a3 {[%clk 0:00:57.9]} 49. e5 {[%clk 0:00:12.3]} 49... Bxe5 {[%clk 0:00:55.9]}
50. Nb3 {[%clk 0:00:12.1]} 50... a2 {[%clk 0:00:52.6]} 51. f4 {[%clk 0:00:09.9]}
51... Bc4 {[%clk 0:00:50.5]} 52. Na1 {[%clk 0:00:08.5]} 52... Bd6 {[%clk
0:00:46.6]} 53. Ke1 {[%clk 0:00:08.4]} 53... Bxd5 {[%clk 0:00:46.5]} 0-1

[Event "Early-Titled-Tuesday-Blitz-September-12-2023"]
[Site "Chess.com"]
[Date "2023.09.12"]
[Round "5"]
[White "Dixit_Nikhil"]
[Black "Quattroporte300"]
[Result "1/2-1/2"]
[WhiteElo "2570"]
[BlackElo "2409"]
[TimeControl "180+1"]
[EndTime "8:55:25 PDT"]
[Termination "Game drawn by repetition"]

1. e4 {[%clk 0:02:48]} 1... c5 {[%clk 0:02:59.2]} 2. Nf3 {[%clk 0:02:46.1]} 2...
Nc6 {[%clk 0:02:59.4]} 3. Bd3 {[%clk 0:02:45.6]} 3... e5 {[%clk 0:02:56.5]} 4.
Bc4 {[%clk 0:02:44.3]} 4... d6 {[%clk 0:02:53]} 5. O-O {[%clk 0:02:44.5]} 5...
Be7 {[%clk 0:02:52]} 6. c3 {[%clk 0:02:45]} 6... Nf6 {[%clk 0:02:50.6]} 7. d4
{[%clk 0:02:44.9]} 7... exd4 {[%clk 0:02:48.9]} 8. cxd4 {[%clk 0:02:44.7]} 8...
Bg4 {[%clk 0:02:46.3]} 9. d5 {[%clk 0:02:41.1]} 9... Ne5 {[%clk 0:02:39.3]} 10.
Bb5+ {[%clk 0:02:40.1]} 10... Nfd7 {[%clk 0:02:38.2]} 11. Be2 {[%clk 0:02:33.8]}
11... Nxf3+ {[%clk 0:02:20.1]} 12. Bxf3 {[%clk 0:02:34.7]} 12... Bxf3 {[%clk
0:02:20.5]} 13. Qxf3 {[%clk 0:02:35.6]} 13... O-O {[%clk 0:02:20.1]} 14. Nc3
{[%clk 0:02:33.9]} 14... Ne5 {[%clk 0:02:18.8]} 15. Qh3 {[%clk 0:02:32.4]} 15...
c4 {[%clk 0:02:13.1]} 16. f4 {[%clk 0:02:32.3]} 16... Nd3 {[%clk 0:02:12.5]} 17.
f5 {[%clk 0:02:32.4]} 17... Bf6 {[%clk 0:01:44]} 18. g4 {[%clk 0:02:26.3]} 18...
Qb6+ {[%clk 0:01:41.6]} 19. Be3 {[%clk 0:02:10.8]} 19... Qxb2 {[%clk 0:01:38.9]}
20. Na4 {[%clk 0:02:09]} 20... Qc2 {[%clk 0:01:17.8]} 21. Rab1 {[%clk
0:02:02.5]} 21... Qxa4 {[%clk 0:01:17]} 22. g5 {[%clk 0:02:02.3]} 22... Be5
{[%clk 0:01:13.6]} 23. g6 {[%clk 0:01:59]} 23... h6 {[%clk 0:00:57]} 24. Bxh6
{[%clk 0:01:55.8]} 24... fxg6 {[%clk 0:00:20.1]} 25. fxg6 {[%clk 0:01:51.7]}
25... Qe8 {[%clk 0:00:19]} 26. Rxf8+ {[%clk 0:01:40.4]} 26... Kxf8 {[%clk
0:00:18.6]} 27. Bxg7+ {[%clk 0:01:15.3]} 27... Bxg7 {[%clk 0:00:12.6]} 28. Rf1+
{[%clk 0:01:11.1]} 28... Ke7 {[%clk 0:00:13.1]} 29. Qh4+ {[%clk 0:00:55.2]}
29... Kd7 {[%clk 0:00:11.7]} 30. Rf7+ {[%clk 0:00:55.6]} 30... Kc8 {[%clk
0:00:11.1]} 31. Qg4+ {[%clk 0:00:41.6]} 31... Kb8 {[%clk 0:00:10.3]} 32. Rxg7
{[%clk 0:00:42.2]} 32... Ne5 {[%clk 0:00:09.9]} 33. Qe6 {[%clk 0:00:28.2]} 33...
Qxe6 {[%clk 0:00:08.3]} 34. dxe6 {[%clk 0:00:29.1]} 34... a6 {[%clk 0:00:08.2]}
35. Rg8+ {[%clk 0:00:27.2]} 35... Kc7 {[%clk 0:00:04.4]} 36. Rxa8 {[%clk
0:00:27.8]} 36... c3 {[%clk 0:00:05.1]} 37. e7 {[%clk 0:00:11.3]} 37... c2
{[%clk 0:00:05]} 38. Rc8+ {[%clk 0:00:11.6]} 38... Kxc8 {[%clk 0:00:05.3]} 39.
e8=Q+ {[%clk 0:00:12.1]} 39... Kc7 {[%clk 0:00:05.9]} 40. Qe7+ {[%clk
0:00:12.3]} 40... Kc6 {[%clk 0:00:03.9]} 41. Qe8+ {[%clk 0:00:12.2]} 41... Kc7
{[%clk 0:00:04.4]} 42. Qe7+ {[%clk 0:00:09.2]} 42... Kc6 {[%clk 0:00:04.8]} 43.
Qe8+ {[%clk 0:00:05.9]} 43... Kc7 {[%clk 0:00:05.1]} 1/2-1/2

[Event "Early-Titled-Tuesday-Blitz-September-12-2023"]
[Site "Chess.com"]
[Date "2023.09.12"]
[Round "5"]
[White "AnaKuchava"]
[Black "Viacheslav92"]
[Result "1-0"]
[WhiteElo "2239"]
[BlackElo "2502"]
[TimeControl "180+1"]
[EndTime "8:55:25 PDT"]
[Termination "AnaKuchava won by resignation"]

1. d4 {[%clk 0:02:58.7]} 1... Nf6 {[%clk 0:02:57.5]} 2. Nf3 {[%clk 0:02:56.2]}
2... g6 {[%clk 0:02:57.9]} 3. c4 {[%clk 0:02:52.4]} 3... d6 {[%clk 0:02:58.1]}
4. Nc3 {[%clk 0:02:50.5]} 4... Bg7 {[%clk 0:02:58.8]} 5. e4 {[%clk 0:02:50.1]}
5... O-O {[%clk 0:02:59.7]} 6. Be2 {[%clk 0:02:47.7]} 6... e5 {[%clk 0:03:00.1]}
7. O-O {[%clk 0:02:47.7]} 7... Nc6 {[%clk 0:02:58.2]} 8. Be3 {[%clk 0:02:46.7]}
8... Re8 {[%clk 0:02:56.8]} 9. d5 {[%clk 0:02:45.5]} 9... Nd4 {[%clk 0:02:56.8]}
10. h3 {[%clk 0:02:28.4]} 10... c5 {[%clk 0:02:47.6]} 11. dxc6 {[%clk
0:02:23.8]} 11... bxc6 {[%clk 0:02:48.5]} 12. Nxd4 {[%clk 0:02:20.8]} 12... exd4
{[%clk 0:02:49.4]} 13. Bxd4 {[%clk 0:02:04.2]} 13... Nxe4 {[%clk 0:02:47.9]} 14.
Bxg7 {[%clk 0:01:56.4]} 14... Kxg7 {[%clk 0:02:48.8]} 15. Qd4+ {[%clk
0:01:56.2]} 15... Qf6 {[%clk 0:02:43]} 16. Qxf6+ {[%clk 0:01:39.5]} 16... Kxf6
{[%clk 0:02:43.9]} 17. Nxe4+ {[%clk 0:01:34.8]} 17... Rxe4 {[%clk 0:02:43]} 18.
Rfe1 {[%clk 0:01:35.2]} 18... Be6 {[%clk 0:02:32.5]} 19. b3 {[%clk 0:01:31.4]}
19... a5 {[%clk 0:02:06.9]} 20. Bf3 {[%clk 0:01:30.3]} 20... Rxe1+ {[%clk
0:02:07.8]} 21. Rxe1 {[%clk 0:01:30.4]} 21... Rc8 {[%clk 0:02:08.3]} 22. Kf1
{[%clk 0:01:09.5]} 22... Ke7 {[%clk 0:02:07.9]} 23. Ke2 {[%clk 0:00:59]} 23...
Kd7 {[%clk 0:02:08.4]} 24. Kd2 {[%clk 0:00:57.9]} 24... Rb8 {[%clk 0:02:00.9]}
25. Kc3 {[%clk 0:00:57.8]} 25... h5 {[%clk 0:01:54.6]} 26. a3 {[%clk 0:00:55.5]}
26... Rb7 {[%clk 0:01:46.3]} 27. b4 {[%clk 0:00:43]} 27... axb4+ {[%clk
0:01:47.2]} 28. axb4 {[%clk 0:00:43.6]} 28... Ra7 {[%clk 0:01:47.5]} 29. Kb3
{[%clk 0:00:40.5]} 29... Kc7 {[%clk 0:01:41.2]} 30. Rd1 {[%clk 0:00:18.6]} 30...
Kb6 {[%clk 0:01:33.6]} 31. Rc1 {[%clk 0:00:16.7]} 31... c5 {[%clk 0:01:21.1]}
32. b5 {[%clk 0:00:12.4]} 32... Ra5 {[%clk 0:01:20.9]} 33. Bc6 {[%clk
0:00:09.2]} 33... h4 {[%clk 0:01:10]} 34. Rd1 {[%clk 0:00:08.1]} 34... Kc7
{[%clk 0:01:08.1]} 35. Re1 {[%clk 0:00:07.8]} 35... Ra7 {[%clk 0:01:04.1]} 36.
Re4 {[%clk 0:00:07.2]} 36... Ra1 {[%clk 0:00:54.6]} 37. Rxh4 {[%clk 0:00:06.6]}
37... Rb1+ {[%clk 0:00:51.7]} 38. Kc2 {[%clk 0:00:03]} 38... Rf1 {[%clk
0:00:47.6]} 39. Rf4 {[%clk 0:00:01.6]} 39... Kb6 {[%clk 0:00:42.8]} 40. Bd5
{[%clk 0:00:01.2]} 40... Bxd5 {[%clk 0:00:38.6]} 41. cxd5 {[%clk 0:00:02.1]}
41... f5 {[%clk 0:00:39.1]} 42. g4 {[%clk 0:00:01.3]} 42... fxg4 {[%clk
0:00:35.4]} 43. hxg4 {[%clk 0:00:02.2]} 43... Kxb5 {[%clk 0:00:35.8]} 44. Rf6
{[%clk 0:00:02.6]} 44... c4 {[%clk 0:00:34.1]} 45. Rxd6 {[%clk 0:00:02.6]} 45...
Rxf2+ {[%clk 0:00:32.4]} 46. Kc3 {[%clk 0:00:03.2]} 46... Kc5 {[%clk 0:00:29.5]}
47. Rxg6 {[%clk 0:00:01.7]} 47... Rf3+ {[%clk 0:00:30.4]} 48. Kc2 {[%clk
0:00:01.4]} 48... Kxd5 {[%clk 0:00:31.1]} 49. Rg5+ {[%clk 0:00:01.7]} 49... Kd4
{[%clk 0:00:31.2]} 50. Rf5 {[%clk 0:00:02.2]} 50... Rf2+ {[%clk 0:00:31.6]} 51.
Rxf2 {[%clk 0:00:02]} 51... Ke3 {[%clk 0:00:32.1]} 52. Rg2 {[%clk 0:00:02.1]}
52... Kf3 {[%clk 0:00:31.3]} 53. g5 {[%clk 0:00:02.4]} 53... Kxg2 {[%clk
0:00:32.2]} 54. g6 {[%clk 0:00:03.1]} 1-0